Cogmind - Beta 16.1 @@@ ROGUE MODE // 2026.03.23 @ 20:59:03 Player: Elxavo Result: Destroyed by L-31 Rogue with Katana Performance ------------- Evolutions (1) 500 Regions Visited (3) 600 Robots Destroyed (36) 180 Value Destroyed (963) 963 Prototype IDs (4) 80 Alien Tech Used (0) 0 Bonus (0) 0 TOTAL SCORE: 2323 Bonus ------- None Cogmind --------- Core Integrity 0/400 Matter 300/300 Energy 280/280 System Corruption 0% Temperature Cool (0) Movement Core (450) Ox8 Location -9/Storage Parts ------- > --- POWER (1) -------- Heavy Ion Engine > --- PROPULSION (3) --- (None) > --- UTILITY (3) ------ Medium Storage Unit Advanced Targeting Computer Melee Analysis Suite > --- WEAPON (2) ------- Improved Heavy Machine Gun Maul > --- INVENTORY (10) --- Terrain Scanner Advanced Targeting Computer Drone Bay (2/2) Improved Assault Rifle Improved Assault Rifle Grenade Launcher Mining Laser Heavy Hammer Peak State ------------ > --- POWER ------------ Nuclear Core > --- PROPULSION ------- Improved Treads Aluminum Leg Hover Unit > --- UTILITY ---------- Medium Storage Unit Advanced Targeting Computer Hardened Light Armor Plating > --- WEAPON ----------- Improved Heavy Machine Gun Maul > --- INVENTORY -------- Improved Targeting Computer Advanced Targeting Computer Trap Extractor Improved Light Cannon Grenade Launcher Heavy Hammer Mining Claw [Rating: 22] Favorites ----------- Power Improved Ion Engine Engine Improved Ion Engine Power Core Nuclear Core Propulsion Improved Treads Treads Improved Treads Leg Aluminum Leg Wheel Armored Wheel Hover Unit Hover Unit Utility Advanced Targeting Computer Device Seismic Detector Storage Medium Storage Unit Processor Advanced Targeting Computer Protection Hardened Light Armor Plating Weapon Mining Claw Energy Gun Medium Laser Ballistic Gun Heavy Assault Rifle Ballistic Cannon Improved Light Cannon Impact Weapon Maul Slashing Weapon Mining Claw Build | -11 -10 -9 -9 ------- Run | Yrd Mat Mat Sto Slots Evolved 2 | . . 2 . Power . | . . . . Propulsion 1 | . . 1 . Utility 1 | . . 1 . Weapon . | . . . . Parts Attached 28 | 7 1 6 14 Power 4 | 1 . 1 2 Engine 3 | 1 . 1 1 Core 1 | . . . 1 Reactor . | . . . . Propulsion 9 | 2 . 3 4 Treads 4 | 2 . 2 . Leg 2 | . . 1 1 Wheel 1 | . . . 1 Hover 2 | . . . 2 Flight . | . . . . Utility 8 | 2 . 1 5 Device 2 | 1 . . 1 Storage 2 | 1 . . 1 Processor 2 | . . 1 1 Hackware . | . . . . Protection 2 | . . . 2 Artifact . | . . . . Weapon 7 | 2 1 1 3 Energy Gun 1 | 1 . . . Energy Cannon . | . . . . Ballistic Gun 3 | 1 . 1 1 Ballistic Cannon 1 | . . . 1 Launcher . | . . . . Special Weapon . | . . . . Impact Weapon 1 | . . . 1 Slashing Weapon 1 | . 1 . . Piercing Weapon . | . . . . Special Melee Weapon . | . . . . Unidentified Prototypes 2 | . . . 2 Parts Lost 12 | . . . 12 Power 2 | . . . 2 Propulsion 5 | . . . 5 Utility 4 | . . . 4 Weapon 1 | . . . 1 Highest Loss Streak 4 | . . . 4 To Critical Strikes . | . . . . Average Backups 7 | 4 7 7 8 Power . | . 1 1 . Propulsion . | 1 2 1 . Utility 2 | . 1 1 3 Weapon 3 | . 3 3 4 Tool/Special . | . . . . Unused Backups 16 | . 1 2 13 Power 1 | . . 1 . Propulsion . | . . . . Utility 7 | . 1 . 6 Weapon 8 | . . 1 7 Tool/Special . | . . . . Average Slot Usage (%) 96 | . 100 99 95 Engine 7 | . 14 11 6 Core 3 | . . . 4 Treads 17 | . 28 22 15 Leg 8 | . . 11 9 Wheel 1 | . . . 1 Hover 2 | . . . 2 Device 7 | . 14 11 5 Storage 11 | . 14 11 10 Processor 10 | . . 10 11 Protection 3 | . . . 4 Ballistic Gun 9 | . 14 11 9 Ballistic Cannon 1 | . . . 1 Impact Weapon 2 | . . . 3 Slashing Weapon 8 | . 12 11 7 Peak Build Rating 22 | 7 7 16 22 Average Rating 14 | 6 7 14 17 On Entrance 7 | . 7 7 16 Avg Prop Armor Cover (%) 10 | . . 13 8 Naked Turns . | . . . . Heaviest Build 29 | 14 14 18 29 Greatest Support 46 | 40 40 46 46 Greatest Overweight (x) 9 | . . 1 9 Average Overweight (x) . | . . . 1 Largest Inventory Capacity 10 | 8 8 8 10 Average Capacity 9 | 7 8 8 9 Most Carried 10 | 6 8 8 10 Average Carried 7 | 4 7 7 8 Final Capacity 10 | 8 8 8 10 Final Carried 8 | 5 8 8 8 Class Distribution -------------------- 100% | Mutant Dominant Class ---------------- Mutant | -10/Materials Mutant | -9/Materials Mutant | -9/Storage Resources | -11 -10 -9 -9 ----------- Run | Yrd Mat Mat Sto Matter Collected 732 | 282 16 129 305 Remotely . | . . . . Salvage Created 1242 | 155 42 193 852 Parts 65 | 6 5 13 41 Haulers Intercepted 1 | . . . 1 Recyclers Shooed 1 | 1 . . . Parts Field Recycled . | . . . . Retrieved Matter . | . . . . Parts Self-Destructed . | . . . . Prevented . | . . . . Parts Restored . | . . . . Kills | -11 -10 -9 -9 ------- Run | Yrd Mat Mat Sto Combat Hostiles Destroyed 26 | . 3 6 17 Melee 4 | . . . 4 Guns 16 | . 3 6 7 Cannons 2 | . . . 2 AOE 1 | . . . 1 Classes Destroyed 10 | 2 1 2 5 Worker 1 | . . . 1 Builder 1 | . . . 1 Tunneler 3 | 3 . . . Hauler 1 | . . . 1 Recycler 1 | 1 . . . Watcher 3 | . . 1 2 Swarmer 7 | . 3 4 . Grunt 7 | . . . 7 Duelist 1 | . . . 1 Sentry 11 | . . 2 9 Best Kill Streak 5 | 3 3 5 2 Combat Bots Only 4 | . 3 4 2 Max Kills in Single Turn 1 | 1 1 1 1 Gunslinging . | . . . . Exploded 1 | . . . 1 Melee 1 | . . . 1 Uniques/NPCs Destroyed . | . . . . Combat | -11 -10 -9 -9 -------- Run | Yrd Mat Mat Sto Hostile Shots Fired 189 | . 16 32 141 Missed 36 | . 3 9 24 Hits 153 | . 13 23 117 Melee 2 | . . . 2 Projectile 151 | . 13 23 115 AOE 1 | . . . 1 Critical Strikes 4 | . . 1 3 Damage Taken 2013 | . 98 253 1662 Core 425 | . 6 58 361 Absorbed by Shields . | . . . . Regen/Repaired (Parts) 128 | . . . 128 Core Remaining (%) 98 | 100 97 . . Volleys Fired 101 | 12 6 27 56 Largest 2 | 2 1 1 1 Hottest 70 | 70 20 23 33 Shots Fired 113 | 24 6 27 56 Gun 99 | 24 6 27 42 Cannon 14 | . . . 14 Launcher . | . . . . Special . | . . . . Kinetic 101 | 12 6 27 56 Thermal 12 | 12 . . . Explosive . | . . . . Electromagnetic . | . . . . Robot Hit Streak 14 | 13 4 8 14 Robot Miss Streak 2 | 2 2 1 2 Penetration Max . | . . . . Secondary Targets . | . . . . Shots Hit Robots 113 | 17 4 23 69 Core Hits 42 | 7 3 10 22 Critical Kills 1 | . . . 1 Critical Parts Destroyed 5 | . . . 5 Critical Strikes 9 | 3 . . 6 Burn 3 | 3 . . . Smash 6 | . . . 6 Melee Attacks 34 | . 3 . 31 Impact 27 | . . . 27 Slashing 7 | . 3 . 4 Piercing . | . . . . Sneak Attacks 2 | . . . 2 Combat Hostiles . | . . . . Follow-up Attacks . | . . . . Damage Inflicted 2123 | 203 36 285 1599 Guns 1154 | 203 36 285 630 Cannons 246 | . . . 246 Explosions . | . . . . Melee 723 | . . . 723 Ramming . | . . . . Kinetic 1262 | 65 36 285 876 Thermal 138 | 138 . . . Explosive . | . . . . Electromagnetic . | . . . . Impact 675 | . . . 675 Slashing 48 | . . . 48 Piercing . | . . . . Highest Corruption . | . . . . Average Corruption . | . . . . Corruption Purged . | . . . . Corruption Blocked . | . . . . Overload Shots . | . . . . Overflow Damage 216 | . . . 216 Projectiles . | . . . . Explosions . | . . . . Melee 216 | . . . 216 Knockbacks 3 | . . . 3 Impact 1 | . . . 1 Kinetic 2 | . . . 2 Secondary . | . . . . Self-Inflicted Damage . | . . . . Shots . | . . . . Rammed . | . . . . Targets Rammed . | . . . . Kicked . | . . . . Crushed . | . . . . Highest Temperature 70 | 70 . 6 27 Average Temperature 21 | 26 . 6 12 Received Heat Transfer 681 | . . 36 645 Siege Activations . | . . . . Martial Activations . | . . . . Shielding Activations . | . . . . Robots Disrupted . | . . . . Combat Hostiles . | . . . . Robots Corrupted 4 | . . . 4 Combat Hostiles 3 | . . . 3 Parts Fried 5 | . . . 5 Impact Corruptions 8 | . . . 8 Robots Melted . | . . . . Combat Hostiles . | . . . . Parts Melted 2 | 2 . . . Heat Transferred 629 | 629 . . . Parts Sabotaged . | . . . . Parts Stolen . | . . . . Parts Stripped . | . . . . Power Chain Reactions . | . . . . Alert | -11 -10 -9 -9 ------- Run | Yrd Mat Mat Sto Maximum Alert Level . | . . . . Low Security (%) 100 | 100 100 100 100 Level 1 . | . . . . Level 2 . | . . . . Level 3 . | . . . . Level 4 . | . . . . Level 5 . | . . . . High Security . | . . . . Max Security . | . . . . Peak Influence 191 | 5 60 102 191 Initial 31 | . . . 31 Average 24 | . 15 27 28 Influence Increases 868 | 20 72 188 588 Destroy 0b10 Robot/C 520 | . 60 120 340 Destroy 0b10 Robot/NC 50 | 20 . 5 25 Destroy Leader 178 | . 10 32 136 Successful Hack 41 | . . 16 25 Disable Machine 45 | . . . 45 Destroy Structure 4 | . 2 . 2 Lose Combat Pursuer 30 | . . 15 15 Influence Decreases 689 | 20 72 114 483 Entered New Map 43 | . . . 43 Time Decay 558 | 20 72 114 352 Lost Part 88 | . . . 88 Squads Dispatched 8 | . 1 . 7 Investigation . | . . . . Extermination . | . . . . Reinforcement 2 | . 1 . 1 Assault . | . . . . Garrison 6 | . . . 6 Intercept . | . . . . Searches Triggered . | . . . . Construction Impeded . | . . . . Haulers Reinforced . | . . . . Active Scanning Responses . | . . . . Cargo Convoy Interrupts . | . . . . Stealth | -11 -10 -9 -9 --------- Run | Yrd Mat Mat Sto Distress Signals . | . . . . Communications Jammed . | . . . . Distress Signals . | . . . . Times Spotted 36 | . 4 9 23 Peak Tracking Total 5 | . 3 5 3 Tactical Retreats 2 | . . 1 1 Traps | -11 -10 -9 -9 ------- Run | Yrd Mat Mat Sto Traps Triggered 2 | . . . 2 Indirectly . | . . . . Trap Hack Attempts . | . . . . Triggered . | . . . . Disarmed . | . . . . Reprogrammed . | . . . . Reused . | . . . . Traps Extracted . | . . . . Installed . | . . . . Triggered . | . . . . Machines | -11 -10 -9 -9 ---------- Run | Yrd Mat Mat Sto Machines Disabled 3 | . . . 3 Max in Single Turn 1 | . . . 1 Machines Repaired . | . . . . Machines Dismantled . | . . . . Machines Sabotaged . | . . . . Overloaded Fab Kills . | . . . . Hacking | -11 -10 -9 -9 --------- Run | Yrd Mat Mat Sto Machines Accessed 13 | . 1 4 8 Terminals 8 | . . 2 6 Fabricators . | . . . . Repair Stations 2 | . . 1 1 Recycling Units 3 | . 1 1 1 Scanalyzers . | . . . . Garrison Access . | . . . . Total Hacks 33 | . 3 11 19 Successful 17 | . . 5 12 Failed 16 | . 3 6 7 Catastrophic . | . . . . Database Lockouts . | . . . . Manual . | . . . . Terminals 20 | . . 7 13 Fabricators . | . . . . Repair Stations 4 | . . 2 2 Recycling Units 9 | . 3 2 4 Scanalyzers . | . . . . Garrison Access . | . . . . Terminal Hacks 12 | . . 3 9 Part Schematic 1 | . . . 1 Robot Analysis 1 | . . . 1 Prototype ID Bank 1 | . . 1 . Open Door 2 | . . . 2 Branch Access Points 1 | . . 1 . Emergency Access Points 1 | . . . 1 Terminal Index 1 | . . . 1 Locate Traps 2 | . . . 2 Hauler Manifests 1 | . . . 1 Zone Layout 1 | . . 1 . Fabricator Hacks . | . . . . Repair Station Hacks 2 | . . . 2 Scan Component 1 | . . . 1 Repair 1 | . . . 1 Recycling Unit Hacks 3 | . . 2 1 Report Inventory 2 | . . 1 1 Retrieve Components 1 | . . 1 . Scanalyzer . | . . . . Garrison Access Hacks . | . . . . Unauthorized Hacks . | . . . . Terminals . | . . . . Fabricators . | . . . . Repair Stations . | . . . . Recycling Units . | . . . . Scanalyzers . | . . . . Garrison Access . | . . . . Data Cores Recovered . | . . . . Used . | . . . . Hacking Detections 10 | . 1 4 5 Full Trace Events 1 | . . . 1 Feedback Events . | . . . . Feedback Blocked . | . . . . Robot Schematics Acquired . | . . . . Robots Built . | . . . . Authchips . | . . . . Time . | . . . . Total Robot Build Rating . | . . . . Part Schematics Acquired 1 | . . . 1 Parts Built . | . . . . Authchips . | . . . . Time . | . . . . Total Part Build Rating . | . . . . Part Studies Acquired . | . . . . Parts Repaired 1 | . . . 1 Time 26 | . . . 26 Parts Recycled . | . . . . Recycled Matter . | . . . . Retrieved Matter . | . . . . Retrieved Components 10 | . . 10 . Parts Scanalyzed . | . . . . Part Schematics Acquired . | . . . . Parts Damaged . | . . . . Bothacking | -11 -10 -9 -9 ------------ Run | Yrd Mat Mat Sto Used RIF Installer . | . . . . Robots Hacked . | . . . . Non-combat . | . . . . Combat . | . . . . Robot Hacks Applied . | . . . . Relay Couplers Released . | . . . . Fabnet Peak Effective % . | . . . . Robots Rewired . | . . . . Allies Hacked . | . . . . Hacks Repelled . | . . . . Allies | -11 -10 -9 -9 -------- Run | Yrd Mat Mat Sto Total Allies . | . . . . Largest Group . | . . . . Highest-Rated Group . | . . . . Highest-Rated Ally . | . . . . Total Orders . | . . . . Ally Attacks . | . . . . Total Damage . | . . . . Kills . | . . . . Allies Corrupted . | . . . . Allies Melted . | . . . . Intel | -11 -10 -9 -9 ------- Run | Yrd Mat Mat Sto Active Infowar (turns) 2218 | 256 273 548 1141 Seismic 2218 | 256 273 548 1141 Robot Analysis Total 1 | . . . 1 Derelict Logs Recovered . | . . . . Drone Launches . | . . . . Drone Recoveries . | . . . . Exploration | -11 -10 -9 -9 ------------- Run | Yrd Mat Mat Sto Turns Passed 3404 | 377 273 548 2206 Spaces Moved 1100 | 158 70 261 611 Core 5 | 3 . . 2 Treads 617 | 155 70 184 208 Legs 195 | . . 77 118 Wheels 179 | . . . 179 Hover 104 | . . . 104 Flight . | . . . . Fastest Speed 50 | 50 160 160 105 Average Speed 179 | 157 160 168 192 Slowest Speed 500 | 160 160 190 500 Overloaded Moves . | . . . . Propulsion Burnouts . | . . . . Robots Hopped . | . . . . Potential Cave-ins . | . . . . Cave-ins Triggered . | . . . . Exploration Rate (%) 31 | 7 12 28 78 Regions Visited 3 Branch Regions 1 Pre-discovered Areas . | . . . . Known Exits Taken 1 | . . 1 . Unknown Exits Taken 2 | 1 1 . . Scrap Searched . | . . . . Spaces Dug 5 | . 3 . 2 Terrain Destroyed 5 | . 3 . 2 Melee 5 | . 3 . 2 Projectile . | . . . . AOE . | . . . . Terrain Rammed . | . . . . Walls Destroyed . | . . . . Machines Disabled . | . . . . Actions | -11 -10 -9 -9 --------- Run | Yrd Mat Mat Sto Total 2358 | 264 220 348 1526 Wait 1024 | 76 136 41 771 Move 1097 | 157 69 260 611 Hop . | . . . . Pick Up 43 | 12 4 5 22 Fast Attach 2 | . . 1 1 Attach 19 | 7 . 2 10 Detach . | . . . . Swap 9 | . 1 4 4 Drop 19 | . 1 8 10 Fire 101 | 12 6 27 56 Melee 34 | . 3 . 31 Ram . | . . . . Kick . | . . . . Crush . | . . . . Escape Stasis 10 | . . . 10 Rewire . | . . . . Trap . | . . . . Miscellaneous . | . . . . Route ------- -11/Scrapyard -10/Materials -9/Materials (discovered 5 exits: [*Mat] / Min x2 / *Sto x2) -9/Storage History --------- Turn | Location | Event 12 | -11/Scrapyard | Discovered new exit (range 13) 378 | -11/Scrapyard | Entered Materials 379 | -10/Materials | Build established: Mutant 460 | -10/Materials | Discovered new exit (range 14) 651 | -10/Materials | Entered another Materials area 651 | -9/Materials | Evolved 2 slots: Propulsion x1, Utility x1 837 | -9/Materials | Discovered new exit (range 7) 1072 | -9/Materials | Discovered new exit (range 8) 1135 | -9/Materials | Identified exit to Mines 1135 | -9/Materials | Identified exit to Storage 1199 | -9/Materials | Entered Storage 1619 | -9/Storage | Garrison activated, responded to threat 2297 | -9/Storage | Garrison activated, responded to threat 2372 | -9/Storage | Lost 4 parts (1p1n1u1w) 2656 | -9/Storage | Core integrity fell below 50% 2876 | -9/Storage | Repaired Med. Storage Unit 3349 | -9/Storage | Core integrity fell below 20% 3405 | -9/Storage | Destroyed by L-31 Rogue with Katana Last Messages --------------- 03341_ R-06 Scavenger collects Imp. Light Cannon. 03344_ Destroyed Heat Sink. 03344_ Y-45 Defender system corrupted by crushing effect. 03352_ Y-45 Defender suffers critical hit (Smash). 03352_ Destroyed Lgt. Treads. 03352_ Y-45 Defender system corrupted by crushing effect. 03353_ Y-45 Defender system terminally corrupted. 03353_ Imp. Ion Engine fried. 03353_ K-01 Serf collects debris. 03359_ Connecting with Terminal... >>Traps(Locate) Found 6 traps in 1 array: 6x Alarm Trap Map updated. 03361_ K-01 Serf collects debris. 03362_ R-06 Scavenger collects Corrupted Lgt. Treads. 03365_ K-01 Serf collects debris. 03392_ G-34 Mercenary destroyed. 03398_ G-34 Mercenary knocked back. 03405_ Arm. Wheel destroyed. Map ----- +----------------------------------------------------+ | #########* ###?????????????????????????????# | | ## #??????????????????????????????## | | ## #??????????????????????????????#* """ | | "" """ ## ##?????????????????????????????##% """ | | "" """ # #??????????????????????????????# [ """ | | "" """ + #??????????????????????????????# | | # #??????????????????????????????# | | # #??????????????????????????????####### | | ##/######????????????????????????? #??????? | | "Y"##### #??????????????????????? #???#### | | """#???# ] #??????????#######???? ##?# ^ | | ####???# % ###+##+##### #?? " #?# """ | | ???????# ## # =!#??# """ | | ???????# ## % + =*#??# """ | | ???????# [ %+ % # #??#^^ | | ???????# #####T###### #?? = #??#^ | | ???????##################### ##????######??# | | ???????????????# # #?????????????# | | ???????????????# # #?????????????###" | | ???????????????# # #???????????????#"G | | ???????????????# +^^^+???????????????#"" | | ???????????????# Y#^^^#???????????????##? | | ???????????????# # #?????????????????? | | ???????????????# # #?????????????????? | | ???????????????##########l## #?????????????????? | | ????????????????????????#@## #?????????????????? | | ??????????????????????? !g[ #?????????????????? | | ????????????????????? #?????????????????? | | ??????????????????? #?????????????????? | | ??????????????????########+##+##?????????????????? | | ?????????????????????????????????????????????????? | | ?????????????????????????????????????????????????? | | ?????????????????????????????????????????????????? | | ?????????????????????????????????????????????????? | | ?????????????????????????????????????????????????? | | ?????????????????????????????????????????????????? | | ?????????????????????????????????????????????????? | | ?????????????????????????????????????????????????? | | | | | | | | | | | | | | | | | | | | | | | | | +----------------------------------------------------+ Best States ------------- Heat Dissipation 28 Energy Generation 14 Energy Capacity 280 Matter Stores 300 Matter Capacity 300 Sight Range 16 Terrain Scan Density 10 Armor Coverage 150 Evasion (%) 40 Targeting Accuracy 8 Melee Accuracy 5 Recoil Reduction 2 Item Schematics ----------------- Com. Matter Pod | -9/Storage | Hacked Robot Schematics ------------------ None Fabricated ------------ Nothing Repaired ---------- Med. Storage Unit | 48% | -9/Storage Studied --------- None Alien Tech Used ----------------- None Achievements -------------- Overwhelming Challenges ------------ None Game ------ Seed VariableTacticalTriangulator Manual? 0 Play Time 00:51:24 Cumulative 44.9 hours Start 2026.03.23 @ 20:06:01 End 2026.03.23 @ 20:59:03 Sessions 1 Manual Loads 0 Difficulty Rogue Special Mode None Game No. 56 Rogue 56 Adventurer 0 Explorer 0 Win Type - Total 0 Types 0/0/0/0/0/0/0/0/0/0 Lore% 24 Gallery% 19 Achievement% 12 Wizard Run 0 Options --------- Layout 0 ASCII 0 Keyboard 0 Movement Mouse Keybinds 0 Fullscreen 1 Font 18/SmallcapsGlow Map View 76x50 Zoom Use 0% Tactical HUD 1 Map Filters NONE Filters LOW_CONTRAST(13,24,33) Steam 1 RUN: 448667d6-afbe-4260-9697-2020e3dd9852